fUST/lending_fUST_20251218
["ID","MTS","AMOUNT","RATE_DAILY","PERIOD"]
[398912541,1765987851004,-500.0,0.00043287,120]
[398912542,1765987851013,-13868.39,0.00043287,120]
[398912543,1765987851022,-2858.93,0.00043287,2]
[398912544,1765987851031,-1678.24,0.00043287,120]
[398912545,1765987851040,-1098.22,0.00043287,120]
[398912546,1765987851049,-695.03,0.00043287,120]
[398912547,1765987851058,-500.0,0.00043287,120]
[398912548,1765987851067,-500.0,0.00043287,120]
[398912549,1765987851079,-177.64021355,0.000435,120]
[398912550,1765987851088,-168.94036194,0.000435,120]
[398912551,1765987851097,-265.17968309,0.000435,120]
[398912552,1765987851106,-544.69,0.00043561,20]
[398912553,1765987851115,-500.0,0.00043561,120]
[398912555,1765987851124,-1589.75,0.00043561,120]
[398912557,1765987851134,-651.98,0.00043561,120]
[398912559,1765987851143,-598.36,0.00043561,120]
[398912561,1765987851152,-1914.8,0.00043561,120]
[398912563,1765987851161,-500.0,0.00043561,120]
[398912565,1765987851171,-358.80865934,0.00043561,120]
[398912568,1765987851181,-500.0,0.00043561,120]
[398912570,1765987851191,-13868.39,0.00043561,120]
[398912571,1765987851200,-2858.93,0.00043561,2]
[398912574,1765987851215,-1678.24,0.00043561,120]
[398912575,1765987851224,-1098.22,0.00043561,120]
[398912578,1765987851234,-695.03,0.00043561,120]
[398912580,1765987851244,-500.0,0.00043561,120]
[398912581,1765987851255,-500.0,0.00043561,120]
[398912583,1765987851265,-179.76630381,0.00043596,29]
[398912585,1765987851274,-1000.0,0.000438,90]
[398912587,1765987851283,-1000.0,0.000438,90]
[398912589,1765987851295,-152.0,0.000438,120]
[398912591,1765987851304,-544.69,0.00043835,20]
[398912593,1765987851314,-569.70925701,0.00043835,120]
[398912595,1765987851324,-1589.75,0.00043835,120]
[398912597,1765987851334,-651.98,0.00043835,120]
[398912599,1765987851342,-598.36,0.00043835,120]
[398912601,1765987851352,-1914.8,0.00043835,120]
[398912603,1765987851360,-959.93,0.00043835,55]
[398912605,1765987851370,-500.0,0.00043835,120]
[398912607,1765987851379,-500.0,0.00043835,120]
[398912609,1765987851388,-13868.39,0.00043835,120]
[398912611,1765987851398,-2858.93,0.00043835,2]
[398912613,1765987851408,-1678.24,0.00043835,120]
[398912615,1765987851418,-1098.22,0.00043835,120]
[398912617,1765987851427,-695.03,0.00043835,120]
[398912619,1765987851436,-500.0,0.00043835,120]
[398912621,1765987851445,-500.0,0.00043835,120]
[398912623,1765987851454,-619.73700065,0.0004389,120]
[398912625,1765987851463,-2000.0,0.000439,120]
[398912627,1765987851472,-1000.0,0.00044,120]
[398912629,1765987851480,-19262.24,0.000441,4]
[398912631,1765987851490,-544.69,0.00044109,20]
[398912633,1765987851499,-1589.75,0.00044109,120]
[398912635,1765987851510,-651.98,0.00044109,120]
[398912637,1765987851519,-598.36,0.00044109,120]
[398912639,1765987851528,-1914.8,0.00044109,120]
[398912641,1765987851537,-500.0,0.00044109,120]
[398912643,1765987851547,-500.0,0.00044109,120]
[398912645,1765987851556,-13868.39,0.00044109,120]
[398912647,1765987851565,-2858.93,0.00044109,2]
[398912649,1765987851575,-1678.24,0.00044109,120]
[398912651,1765987851584,-1098.22,0.00044109,120]
[398912653,1765987851593,-695.03,0.00044109,120]
[398912655,1765987851602,-500.0,0.00044109,120]
[398912657,1765987851611,-500.0,0.00044109,120]
[398912659,1765987851620,-544.69,0.00044383,20]
[398912661,1765987851629,-1589.75,0.00044383,120]
[398912663,1765987851639,-651.98,0.00044383,120]
[398912665,1765987851648,-598.36,0.00044383,120]
[398912667,1765987851657,-1914.8,0.00044383,120]
[398912669,1765987851667,-959.93,0.00044383,60]
[398912671,1765987851675,-500.0,0.00044383,120]
[398912673,1765987851684,-500.0,0.00044383,120]
[398912675,1765987851693,-13868.39,0.00044383,120]
[398912677,1765987851703,-2858.93,0.00044383,2]
[398912679,1765987851713,-1678.24,0.00044383,120]
[398912681,1765987851722,-1098.22,0.00044383,120]
[398912683,1765987851731,-695.03,0.00044383,120]
[398912685,1765987851740,-500.0,0.00044383,120]
[398912687,1765987851749,-500.0,0.00044383,120]
[398912689,1765987851758,-152.0,0.000444,120]
[398912691,1765987851767,-200.0,0.0004455,66]
[398912692,1765987851776,-50000.0,0.000446,120]
[398912694,1765987851785,-169.78,0.000446,30]
[398912697,1765987851795,-151.0,0.000446,60]
[398912698,1765987851804,-151.0,0.000446,60]
[398912700,1765987851814,-544.69,0.00044657,20]
[398912702,1765987851825,-1589.75,0.00044657,120]
[398912704,1765987851834,-651.98,0.00044657,120]
[398912706,1765987851843,-598.36,0.00044657,120]
[398912709,1765987851853,-1914.8,0.00044657,120]
[398912710,1765987851863,-500.0,0.00044657,120]
[398912712,1765987851872,-500.0,0.00044657,120]
[398912714,1765987851881,-13868.39,0.00044657,120]
[398912716,1765987851891,-2858.93,0.00044657,2]
[398912719,1765987851900,-1678.24,0.00044657,120]
[398912720,1765987851909,-1098.22,0.00044657,120]
[398912722,1765987851919,-695.03,0.00044657,120]
[398912724,1765987851929,-500.0,0.00044657,120]
[398912726,1765987851938,-217.44974384,0.00044657,120]
[398912728,1765987851948,-34146.43,0.000447,4]
[398912730,1765987851957,-383.3360651,0.0004473,30]
[398912732,1765987851967,-183.5628943,0.00044762,30]
[398912734,1765987851976,-183.5628943,0.00044762,30]
[398912736,1765987851985,-443.5955616,0.00044762,30]
[398912738,1765987851995,-183.5628943,0.00044762,30]
[398912740,1765987852004,-183.5628943,0.00044762,30]
[398912742,1765987852013,-183.5628943,0.00044762,30]
[398912744,1765987852023,-183.5628943,0.00044762,30]
[398912746,1765987852032,-183.5628943,0.00044762,30]
[398912748,1765987852042,-177.64021355,0.000448,120]
[398912750,1765987852052,-168.94036194,0.000448,120]
[398912752,1765987852062,-265.17968309,0.000448,120]
[398912754,1765987852071,-2000.0,0.000449,120]
[398912756,1765987852081,-544.69,0.00044931,20]
[398912758,1765987852090,-1589.75,0.00044931,120]
[398912760,1765987852100,-651.98,0.00044931,120]
[398912762,1765987852109,-598.36,0.00044931,120]
[398912764,1765987852120,-1914.8,0.00044931,120]
[398912766,1765987852131,-959.93,0.00044931,65]
[398912768,1765987852142,-500.0,0.00044931,120]
[398912770,1765987852151,-500.0,0.00044931,120]
[398912772,1765987852160,-13868.39,0.00044931,120]
[398912774,1765987852170,-2858.93,0.00044931,2]
[398912776,1765987852179,-1678.24,0.00044931,120]
[398912778,1765987852188,-1098.22,0.00044931,120]
[398912780,1765987852197,-695.03,0.00044931,120]
[398912782,1765987852207,-500.0,0.00044931,120]
[398912784,1765987852218,-212.95740018,0.00045,90]
[398912786,1765987852227,-201.58590292,0.00045,120]
[398912788,1765987852235,-5999.78075278,0.00045,120]
[398912789,1765987852245,-500.0,0.00045,120]
[398912791,1765987852255,-1000.0,0.00045,120]
[398912793,1765987852264,-150.0,0.00045,120]
[398912795,1765987852273,-3046.234159,0.00045,120]
[398912797,1765987852282,-152.0,0.00045,120]
[398912800,1765987852298,-217.38,0.00045,30]
[398912801,1765987852307,-507.0,0.00045032,120]
[398912803,1765987852316,-544.69,0.00045205,20]
[398912805,1765987852327,-1589.75,0.00045205,120]
[398912807,1765987852336,-651.98,0.00045205,120]
[398912809,1765987852344,-598.36,0.00045205,120]
[398912811,1765987852354,-1914.8,0.00045205,120]
[398912813,1765987852363,-502.73537459,0.00045205,120]
[398912815,1765987852372,-500.0,0.00045205,120]
[398912817,1765987852381,-13868.39,0.00045205,120]
[398912819,1765987852390,-2858.93,0.00045205,2]
[398912821,1765987852399,-1678.24,0.00045205,120]
[398912823,1765987852408,-1098.22,0.00045205,120]
[398912825,1765987852417,-695.03,0.00045205,120]
[398912827,1765987852427,-151.0,0.00045205,120]
[398912829,1765987852435,-151.0,0.00045205,120]
[398912831,1765987852444,-500.0,0.00045205,120]
[398912833,1765987852454,-31538.92,0.000454,4]
[398912835,1765987852463,-544.69,0.00045479,20]
[398912837,1765987852472,-1589.75,0.00045479,120]
[398912839,1765987852482,-651.98,0.00045479,120]
[398912841,1765987852492,-598.36,0.00045479,120]
[398912843,1765987852504,-1914.8,0.00045479,120]
[398912845,1765987852520,-959.93,0.00045479,70]
[398912847,1765987852533,-467.30848207,0.00045479,120]
[398912849,1765987852542,-13868.39,0.00045479,120]
[398912851,1765987852551,-2858.93,0.00045479,2]
[398912853,1765987852560,-1678.24,0.00045479,120]
[398912855,1765987852569,-1098.22,0.00045479,120]
[398912857,1765987852579,-695.03,0.00045479,120]
[398912859,1765987852589,-500.0,0.00045479,120]
[398912860,1765987852598,-183.5628943,0.00045584,30]
[398912861,1765987852607,-152.0,0.000457,120]
[398912862,1765987852616,-544.69,0.00045753,20]
[398912863,1765987852626,-1589.75,0.00045753,120]
[398912864,1765987852635,-651.98,0.00045753,120]
[398912865,1765987852644,-598.36,0.00045753,120]
[398912866,1765987852654,-1914.8,0.00045753,120]
[398912867,1765987852663,-13868.39,0.00045753,120]
[398912868,1765987852674,-2858.93,0.00045753,2]
[398912869,1765987852686,-1678.24,0.00045753,120]
[398912870,1765987852696,-1098.22,0.00045753,120]
[398912871,1765987852705,-695.03,0.00045753,120]
[398912872,1765987852715,-500.0,0.00045753,120]
[398912873,1765987852725,-648.48768625,0.0004589,120]
[398912874,1765987852734,-2000.0,0.000459,120]
[398912875,1765987852743,-151.0,0.00045938,20]
[398912876,1765987852752,-1310.0,0.00045956,20]
[398912877,1765987852761,-406.2,0.00045966,120]
[398912878,1765987852771,-44282.6,0.00046,4]
[398912879,1765987852780,-200.0,0.00046,120]
[398912880,1765987852789,-150.0,0.00046,60]
[398912881,1765987852873,-150.0,0.00046,120]
[398912882,1765987852882,-544.69,0.00046027,20]
[398912883,1765987852892,-1589.75,0.00046027,120]
[398912884,1765987852902,-651.98,0.00046027,120]
[398912885,1765987852910,-598.36,0.00046027,120]
[398912886,1765987852919,-1914.8,0.00046027,120]
[398912887,1765987852928,-959.93,0.00046027,75]
[398912888,1765987852938,-13868.39,0.00046027,120]
[398912889,1765987852947,-2858.93,0.00046027,2]
[398912890,1765987852956,-1678.24,0.00046027,120]
[398912891,1765987852965,-1098.22,0.00046027,120]
[398912892,1765987852975,-695.03,0.00046027,120]
[398912893,1765987852984,-500.0,0.00046027,120]
[398912894,1765987852993,-177.64021355,0.000461,120]
[398912895,1765987853002,-168.94036194,0.000461,120]
[398912896,1765987853011,-265.17968309,0.000461,120]
[398912897,1765987853021,-671.388432,0.00046143,2]
[398912898,1765987853030,-152.0,0.000463,120]
[398912899,1765987853040,-544.69,0.00046301,20]
[398912900,1765987853050,-1589.75,0.00046301,120]
[398912901,1765987853059,-651.98,0.00046301,120]
[398912902,1765987853068,-598.36,0.00046301,120]
[398912903,1765987853079,-1914.8,0.00046301,120]
[398912904,1765987853089,-13868.39,0.00046301,120]
[398912905,1765987853099,-2858.93,0.00046301,2]
[398912906,1765987853108,-1678.24,0.00046301,120]
[398912907,1765987853118,-1098.22,0.00046301,120]
[398912908,1765987853127,-695.03,0.00046301,120]
[398912909,1765987853137,-500.0,0.00046301,120]
[398912910,1765987853146,-150.0,0.00046344,30]
[398912911,1765987853156,-254.0,0.00046501,120]
[398912912,1765987853165,-544.69,0.00046575,20]
[398912913,1765987853176,-1589.75,0.00046575,120]
[398912914,1765987853185,-651.98,0.00046575,120]
[398912915,1765987853195,-598.36,0.00046575,120]
[398912916,1765987853205,-1914.8,0.00046575,120]
[398912917,1765987853218,-959.93,0.00046575,80]
[398912918,1765987853227,-13868.39,0.00046575,120]
[398912919,1765987853238,-2858.93,0.00046575,2]
[398912920,1765987853247,-1678.24,0.00046575,120]
[398912921,1765987853259,-1098.22,0.00046575,120]
[398912922,1765987853268,-695.03,0.00046575,120]
[398912923,1765987853283,-500.0,0.00046575,120]
[398912924,1765987853295,-30178.69,0.000466,4]
[398912925,1765987853305,-544.69,0.00046849,20]
[398912926,1765987853315,-1589.75,0.00046849,120]
[398912927,1765987853324,-651.98,0.00046849,120]
[398912928,1765987853334,-598.36,0.00046849,120]
[398912929,1765987853344,-1914.8,0.00046849,120]
[398912930,1765987853353,-13868.39,0.00046849,120]
[398912931,1765987853362,-2858.93,0.00046849,2]
[398912932,1765987853372,-1678.24,0.00046849,120]
[398912933,1765987853382,-1098.22,0.00046849,120]
[398912934,1765987853391,-695.03,0.00046849,120]
[398912935,1765987853401,-548.47226262,0.00046849,120]
[398912936,1765987853410,-2000.0,0.000469,120]
[398912937,1765987853419,-152.0,0.000469,120]
[398912938,1765987853428,-150.0,0.00047,120]
[398912939,1765987853438,-544.69,0.00047123,20]
[398912940,1765987853448,-1589.75,0.00047123,120]
[398912941,1765987853457,-651.98,0.00047123,120]
[398912942,1765987853466,-598.36,0.00047123,120]
[398912943,1765987853475,-1914.8,0.00047123,120]
[398912944,1765987853485,-959.93,0.00047123,85]
[398912945,1765987853494,-13868.39,0.00047123,120]
[398912946,1765987853504,-2858.93,0.00047123,2]
[398912947,1765987853514,-1678.24,0.00047123,120]
[398912948,1765987853523,-1098.22,0.00047123,120]
[398912949,1765987853532,-695.03,0.00047123,120]
[398912950,1765987853542,-465.873131,0.00047392,7]
[398912951,1765987853551,-544.73672,0.00047397,20]
[398912952,1765987853560,-1589.76468716,0.00047397,120]
[398912953,1765987853570,-652.09734087,0.00047397,120]
[398912954,1765987853580,-598.58323602,0.00047397,120]
[398912955,1765987853589,-1915.01936082,0.00047397,120]
[398912956,1765987853599,-13868.53928736,0.00047397,120]
[398912957,1765987853608,-2858.94455317,0.00047397,2]
[398912958,1765987853617,-1678.36952678,0.00047397,120]
[398912959,1765987853626,-1098.23465047,0.00047397,120]
[398912960,1765987853635,-695.09055878,0.00047397,120]
[398912961,1765987853644,-265.17968309,0.000475,120]
[398912962,1765987853653,-152.0,0.000475,120]
[398912963,1765987853663,-959.93,0.00047671,90]
[398912964,1765987853672,-192.6673613,0.00047671,30]
[398912965,1765987853682,-400.1857995,0.00047789,30]
[398912966,1765987853691,-677.23837184,0.0004789,120]
[398912967,1765987853700,-50000.0,0.000479,120]
[398912968,1765987853709,-2000.0,0.000479,120]
[398912969,1765987853719,-5000.0,0.00048,7]
[398912970,1765987853728,-200.0,0.00048,120]
[398912971,1765987853738,-150.0,0.00048,120]
[398912972,1765987853748,-5507.72,0.00048,14]
[398912973,1765987853758,-510.0,0.00048032,120]
[398912974,1765987853767,-152.0,0.000482,120]
[398912975,1765987853777,-959.93,0.00048219,95]
[398912976,1765987853790,-4082.6072698,0.00048764,2]
[398912977,1765987853803,-959.93,0.00048767,100]
[398912978,1765987853817,-326.38427503,0.000488,120]
[398912979,1765987853830,-152.0,0.000488,120]
[398912980,1765987853841,-254.0,0.00048826,120]
[398912981,1765987853856,-1130.75687866,0.00048836,5]
[398912982,1765987853870,-500.4740975,0.000489,120]
[398912983,1765987853883,-2000.0,0.000489,120]
[398912984,1765987853895,-743.30940796,0.00048999,14]
[398912985,1765987853908,-314.85829684,0.00049,15]
[398912986,1765987853921,-150.0,0.00049,120]
[398912987,1765987853936,-5507.72,0.00049,14]
[398912988,1765987853949,-959.93,0.00049315,105]
[398912989,1765987853962,-152.0,0.000494,120]
[398912990,1765987853973,-10262.60764165,0.0004943,120]
[398912991,1765987853986,-761443.11013606,0.00049444,30]
[398912992,1765987854188,-5090.5231848,0.00041917,3]
[398912993,1765987854204,-5061.4368152,0.00041917,3]
[398912994,1765987854218,-1573.69567839,0.00042191,3]
[398912995,1765987854234,-2878.6372696,0.00042191,3]
[398912996,1765987854248,-873.8,0.00042191,3]
[398913064,1765987897526,150.0,8.113e-05,2]
[398913065,1765987897946,150.0,8.851e-05,2]
[398913066,1765987898445,150.0,9.589e-05,2]
[398913067,1765987972106,150.0,9.078e-05,2]
[398913068,1765987972525,150.0,9.903e-05,2]
[398913077,1765988172441,658.0,0.00019,120]
[398913078,1765988200005,-200.0,0.00014825,29]
[398913079,1765988278002,150.0,8.073e-05,2]
[398913080,1765988278352,178.24,8.807e-05,2]
[398913081,1765988278762,267.36,9.54e-05,2]
[398913085,1765988457897,150.0,8.143e-05,2]
[398913086,1765988458313,163.08,8.883e-05,2]
[398913087,1765988458759,244.62,9.624e-05,2]
[398913088,1765988539082,150.0,8.291e-05,2]
[398913089,1765988539538,150.0,9.045e-05,2]
[398913090,1765988539955,223.33,9.799e-05,2]
[398913091,1765988617966,150.0,7.927e-05,2]
[398913092,1765988618437,150.0,8.647e-05,2]
[398913093,1765988618834,203.34,9.368e-05,2]
[398913094,1765988694095,150.0,8.24e-05,2]
[398913095,1765988694517,150.0,8.99e-05,2]
[398913096,1765988694936,184.13,9.739e-05,2]
[398913097,1765988771172,150.0,8.22e-05,2]
[398913098,1765988771609,150.0,8.967e-05,2]
[398913099,1765988772010,165.64,9.714e-05,2]
[398913101,1765988849501,150.0,8.122e-05,2]
[398913102,1765988849927,150.0,8.86e-05,2]
[398913103,1765988850348,150.0,9.598e-05,2]
[398913105,1765988926104,150.0,8.275e-05,2]
[398913106,1765988926559,150.0,9.027e-05,2]
[398913107,1765988927437,150.0,9.779e-05,2]
[398913111,1765988948244,-150.92242618,0.00010531,2]
[398913112,1765989003536,150.0,8.379e-05,2]
[398913113,1765989004430,150.0,9.14e-05,2]
[398913114,1765989004902,150.0,9.902e-05,2]
[398913115,1765989018280,-235.0,0.00014,7]
[398913150,1765989032321,-569.0,0.00010606,2]
[398913152,1765989032330,-271.35598786,0.00010607,2]
[398913153,1765989032340,-150.0,0.00010664,2]
[398913155,1765989032350,-200.0,0.00010725,2]
[398913157,1765989032359,-1200.0,0.00011399,2]
[398913159,1765989032369,-6976.00096223,0.000114,2]
[398913161,1765989032379,-179.56,0.00011425,2]
[398913163,1765989032389,-215.47,0.00012187,2]
[398913165,1765989032398,-300.0,0.00012333,2]
[398913167,1765989032407,-1781.20472688,0.00012334,2]
[398913169,1765989032417,-5884.32527763,0.000125,2]
[398913171,1765989032427,-1680.0,0.00012539,2]
[398913173,1765989032436,-50000.0,0.00012805,2]
[398913175,1765989032446,-281.83002578,0.00012805,2]
[398913176,1765989032455,-500.0,0.00012805,2]
[398913178,1765989032465,-500.0,0.00012805,2]
[398913180,1765989032475,-500.0,0.00012805,2]
[398913182,1765989032484,-500.0,0.00012805,2]
[398913184,1765989032493,-1999.85349901,0.00012805,2]
[398913186,1765989032507,-500.0,0.00012805,2]
[398913187,1765989032517,-476.99154349,0.00012805,2]
[398913188,1765989032530,-500.0,0.00012805,2]
[398913189,1765989032540,-1999.85349901,0.00012805,2]
[398913190,1765989032549,-500.0,0.00012805,2]
[398913191,1765989032558,-1999.85349901,0.00012805,2]
[398913192,1765989032569,-266.64244798,0.00012805,2]
[398913193,1765989032579,-319.74449898,0.00012805,2]
[398913194,1765989032589,-500.0,0.00012805,2]
[398913195,1765989032600,-500.0,0.00012805,2]
[398913196,1765989032610,-1999.85349901,0.00012805,2]
[398913197,1765989032620,-500.0,0.00012805,2]
[398913198,1765989032630,-500.0,0.00012805,2]
[398913199,1765989032640,-1999.85349901,0.00012805,2]
[398913200,1765989032650,-500.0,0.00012805,2]
[398913201,1765989032660,-500.0,0.00012805,2]
[398913202,1765989032669,-1999.85349901,0.00012805,2]
[398913203,1765989032679,-1999.85349901,0.00012805,2]
[398913204,1765989032689,-500.0,0.00012805,2]
[398913205,1765989032698,-1999.85349901,0.00012805,2]
[398913206,1765989032707,-500.0,0.00012805,2]
[398913207,1765989032717,-500.0,0.00012805,2]
[398913208,1765989032726,-500.0,0.00012805,2]
[398913209,1765989032736,-1999.85349901,0.00012805,2]
[398913210,1765989032745,-500.0,0.00012805,2]
[398913211,1765989032759,-500.0,0.00012805,2]
[398913212,1765989032768,-1999.85349901,0.00012805,2]
[398913213,1765989032778,-500.0,0.00012805,2]
[398913214,1765989032787,-1999.85349901,0.00012805,2]
[398913215,1765989032797,-500.0,0.00012805,2]
[398913216,1765989032806,-500.0,0.00012805,2]
[398913217,1765989032815,-1999.85349901,0.00012805,2]
[398913218,1765989032825,-500.0,0.00012805,2]
[398913219,1765989032834,-1999.85349901,0.00012805,2]
[398913220,1765989032844,-500.0,0.00012805,2]
[398913221,1765989032853,-500.0,0.00012805,2]
[398913222,1765989032863,-1999.85349901,0.00012805,2]
[398913223,1765989032873,-500.0,0.00012805,2]
[398913224,1765989032882,-500.0,0.00012805,2]
[398913225,1765989032892,-1999.85349901,0.00012805,2]
[398913226,1765989032902,-500.0,0.00012805,2]
[398913227,1765989032912,-1999.85349901,0.00012805,2]
[398913228,1765989032921,-500.0,0.00012805,2]
[398913229,1765989032931,-1999.85349901,0.00012805,2]
[398913230,1765989032941,-500.0,0.00012805,2]
[398913231,1765989032950,-1999.85349901,0.00012805,2]
[398913232,1765989032960,-500.0,0.00012805,2]
[398913233,1765989032970,-1999.85349901,0.00012805,2]
[398913234,1765989032979,-500.0,0.00012805,2]
[398913235,1765989032989,-500.0,0.00012805,2]
[398913236,1765989033002,-1999.85349901,0.00012805,2]
[398913237,1765989033012,-500.0,0.00012805,2]
[398913238,1765989033021,-500.0,0.00012805,2]
[398913239,1765989033031,-1999.85349901,0.00012805,2]
[398913240,1765989033040,-500.0,0.00012805,2]
[398913241,1765989033049,-1999.85349901,0.00012805,2]
[398913242,1765989033059,-500.0,0.00012805,2]
[398913243,1765989033069,-1999.85349901,0.00012805,2]
[398913244,1765989033078,-1999.85349901,0.00012805,2]
[398913245,1765989033088,-1999.85349901,0.00012805,2]
[398913246,1765989033097,-500.0,0.00012805,2]
[398913247,1765989033106,-1999.85349901,0.00012805,2]
[398913248,1765989033116,-500.0,0.00012805,2]
[398913249,1765989033126,-1999.85349901,0.00012805,2]
[398913250,1765989033136,-540.34619835,0.00012805,2]
[398913251,1765989033145,-1999.85349901,0.00012805,2]
[398913252,1765989033154,-1999.85349901,0.00012805,2]
[398913253,1765989033164,-1999.85349901,0.00012805,2]
[398913254,1765989033173,-1999.85349901,0.00012805,2]
[398913255,1765989033182,-1999.85349901,0.00012805,2]
[398913256,1765989033192,-1999.85349901,0.00012805,2]
[398913257,1765989033201,-1999.85349901,0.00012805,2]
[398913258,1765989033215,-1999.85349901,0.00012805,2]
[398913259,1765989033224,-1999.85349901,0.00012805,2]
[398913260,1765989033234,-1999.85349901,0.00012805,2]
[398913261,1765989033243,-1999.85349901,0.00012805,2]
[398913262,1765989033256,-1999.85349901,0.00012805,2]
[398913263,1765989033266,-1999.85349901,0.00012805,2]
[398913264,1765989033275,-1999.85349901,0.00012805,2]
[398913265,1765989033285,-1999.85349901,0.00012805,2]
[398913266,1765989033294,-1999.85349901,0.00012805,2]
[398913267,1765989033304,-1999.85349901,0.00012805,2]
[398913268,1765989033313,-1999.85349901,0.00012805,2]
[398913269,1765989033323,-1999.85349901,0.00012805,2]
[398913270,1765989033332,-1999.85349901,0.00012805,2]
[398913271,1765989033343,-2563.96930941,0.00012805,2]
[398913272,1765989033351,-2563.96930941,0.00012805,2]
[398913273,1765989033361,-2563.96930941,0.00012805,2]
[398913274,1765989033370,-2563.96930941,0.00012805,2]
[398913275,1765989033380,-2563.96930941,0.00012805,2]
[398913276,1765989033389,-2563.96930941,0.00012805,2]
[398913277,1765989033398,-2563.96930941,0.00012805,2]
[398913278,1765989033408,-2563.96930941,0.00012805,2]
[398913279,1765989033417,-2563.96930941,0.00012805,2]
[398913280,1765989033427,-2563.96930941,0.00012805,2]
[398913281,1765989033437,-2563.96930941,0.00012805,2]
[398913282,1765989033447,-2563.96930941,0.00012805,2]
[398913283,1765989033456,-2563.96930941,0.00012805,2]
[398913284,1765989033466,-2563.96930941,0.00012805,2]
[398913285,1765989033475,-2563.96930941,0.00012805,2]
[398913286,1765989033486,-2563.96930941,0.00012805,2]
[398913287,1765989033495,-2563.96930941,0.00012805,2]
[398913288,1765989033507,-500.0,0.00012805,2]
[398913289,1765989033517,-500.0,0.00012805,2]
[398913290,1765989033528,-2563.96930941,0.00012805,2]
[398913291,1765989033538,-500.0,0.00012805,2]
[398913292,1765989033547,-2563.96930941,0.00012805,2]
[398913293,1765989033558,-500.0,0.00012805,2]
[398913294,1765989033568,-500.0,0.00012805,2]
[398913295,1765989033577,-2563.96930941,0.00012805,2]
[398913296,1765989033587,-450.0,0.00012805,2]
[398913297,1765989033597,-2563.96930941,0.00012805,2]
[398913298,1765989033607,-500.0,0.00012805,2]
[398913299,1765989033617,-500.0,0.00012805,2]
[398913300,1765989033627,-2563.96930941,0.00012805,2]
[398913301,1765989033637,-2563.96930941,0.00012805,2]
[398913302,1765989033647,-2563.96930941,0.00012805,2]
[398913303,1765989033658,-500.0,0.00012805,2]
[398913304,1765989033668,-2563.96930941,0.00012805,2]
[398913305,1765989033679,-500.0,0.00012805,2]
[398913306,1765989033689,-2563.96930941,0.00012805,2]
[398913307,1765989033698,-2490.71304343,0.00012805,2]
[398913308,1765989033711,-2490.71304343,0.00012805,2]
[398913309,1765989033720,-2490.71304343,0.00012805,2]
[398913310,1765989033731,-2490.71304343,0.00012805,2]
[398913311,1765989033740,-2490.71304343,0.00012805,2]
[398913312,1765989033752,-2490.71304343,0.00012805,2]
[398913313,1765989033762,-2490.71304343,0.00012805,2]
[398913314,1765989033772,-2490.71304343,0.00012805,2]
[398913315,1765989033781,-2490.71304343,0.00012805,2]
[398913316,1765989033790,-2490.71304343,0.00012805,2]
[398913317,1765989033800,-2490.71304343,0.00012805,2]
[398913318,1765989033809,-2490.71304343,0.00012805,2]
[398913319,1765989033819,-2490.71304343,0.00012805,2]
[398913320,1765989033828,-2490.71304343,0.00012805,2]
[398913321,1765989033837,-286.66,0.0001281,2]
[398913322,1765989033846,-28774.6447413,0.00012811,2]
[398913323,1765989033856,-1781.20472688,0.00012892,2]
[398913324,1765989033865,-251.38,0.00012949,2]
[398913325,1765989033875,-286.66,0.00013084,2]
[398913326,1765989033884,-286.66,0.00013358,2]